fUST/lending_fUST_20240904
["ID","MTS","AMOUNT","RATE_DAILY","PERIOD"]
[337143292,1725454238671,-1000.0,0.00027119,2]
[337143293,1725454238681,-7732.57,0.0002716,3]
[337143294,1725454238690,-172.440113,0.00027168,2]
[337143295,1725454238699,-170.3251183,0.00027168,2]
[337143296,1725454238709,-996.41296405,0.00027169,2]
[337143297,1725454238719,-105754.036364,0.00027169,3]
[337143298,1725454238729,-18259.2668621,0.00027169,2]
[337143299,1725454238738,-1216.29170672,0.00027173,2]
[337143300,1725454238748,-996.41296402,0.00027176,2]
[337143301,1725454238758,-6378.39502662,0.00027179,3]
[337143351,1725454647068,409.9728619,0.00027,120]
[337143352,1725454662728,409.9728619,0.00027,120]
[337143353,1725454676758,409.8804906,0.00027,120]
[337143354,1725454713767,409.9728619,0.00027,120]
[337143382,1725455097735,1500.0,0.0002,2]
[337143383,1725455097762,4799.32,0.0002,2]
[337143455,1725455432213,-190.147852,0.00023019,2]
[337143456,1725455432223,-459.16871469,0.00024658,2]
[337143458,1725455432238,-265.40143431,0.00024658,2]
[337143461,1725455432248,-300.0,0.00024764,2]
[337143463,1725455432258,-71.13482386,0.00024764,2]
[337143465,1725455432273,-228.86517614,0.00024764,2]
[337143468,1725455432286,-64.70162391,0.00024765,2]
[337143531,1725455438528,-19846.11123009,0.00024765,2]
[337143542,1725455443217,-657.14970041,0.00024765,2]
[337143543,1725455443560,-4332.03744559,0.00024765,2]
[337143544,1725455443571,-173.417656,0.0002491,2]
[337143545,1725455443581,-1162.0273046,0.00024916,2]
[337143546,1725455443592,-173.417656,0.00025073,2]
[337143547,1725455443602,-231.8596939,0.00025232,2]
[337143548,1725455443612,-173.417656,0.00025235,2]
[337143549,1725455443623,-173.417656,0.00025397,2]
[337143550,1725455443634,-173.417656,0.00025559,2]
[337143551,1725455443644,-173.417656,0.00025721,2]
[337143552,1725455443654,-173.417656,0.00025884,2]
[337143553,1725455443664,-173.417656,0.00026046,2]
[337143554,1725455443675,-173.417656,0.00026208,2]
[337143555,1725455443685,-420.0,0.00026834,2]
[337143556,1725455443695,-587.548,0.00026888,2]
[337143557,1725455443705,-164.0,0.00027,2]
[337143558,1725455443716,-2000.0,0.00027,2]
[337143559,1725455443728,-597.84777842,0.00027119,2]
[337143560,1725455443738,-1000.0,0.00027129,2]
[337143561,1725455443749,-1094.66253612,0.0002714,2]
[337143562,1725455443759,-597.84777841,0.00027164,2]
[337143563,1725455443769,-597.84777841,0.00027208,2]
[337143564,1725455443778,-6443.81,0.00027209,3]
[337143565,1725455443789,-268.6381865,0.00027218,2]
[337143566,1725455443799,-500.0,0.00027218,2]
[337143567,1725455443809,-500.0,0.00027218,2]
[337143568,1725455443820,-189.64112047,0.00027218,2]
[337143569,1725455443831,-500.0,0.00027218,2]
[337143570,1725455443841,-500.0,0.00027218,2]
[337143571,1725455443851,-188.04673054,0.00027218,2]
[337143573,1725455443862,-26636.01900397,0.00027219,15]
[337143574,1725455443872,-57978.016295,0.00027219,3]
[337143593,1725455448630,1000.0,0.00025,60]
[337143595,1725455460329,-5000.0,0.000273,120]
[337143596,1725455460354,-5000.0,0.000273,120]
[337143597,1725455460380,-5000.0,0.000273,120]
[337143598,1725455460404,-5000.0,0.000273,120]
[337143599,1725455460429,-5000.0,0.000273,120]
[337143600,1725455460454,-5000.0,0.000273,120]
[337143601,1725455460480,-5000.0,0.000273,120]
[337143602,1725455460504,-5000.0,0.000273,120]
[337143603,1725455460528,-5000.0,0.000273,120]
[337143604,1725455460553,-5000.0,0.000273,120]
[337143605,1725455460581,-5000.0,0.000273,120]
[337143606,1725455460605,-5000.0,0.000273,120]
[337143607,1725455460629,-5000.0,0.000273,120]
[337143608,1725455460653,-5000.0,0.000273,120]
[337143609,1725455460677,-5000.0,0.000273,120]
[337143610,1725455460702,-5000.0,0.000273,120]
[337143611,1725455460727,-5000.0,0.000273,120]
[337143612,1725455460751,-5000.0,0.000273,120]
[337143613,1725455460775,-5000.0,0.000273,120]
[337143614,1725455460799,-5000.0,0.000273,120]
[337143615,1725455460823,-5000.0,0.000273,120]
[337143616,1725455460847,-5000.0,0.000273,120]
[337143617,1725455460872,-5000.0,0.000273,120]
[337143618,1725455460896,-5000.0,0.000273,120]
[337143619,1725455460919,-5000.0,0.000273,120]
[337143620,1725455460944,-5000.0,0.000273,120]
[337143621,1725455460974,-5000.0,0.000273,120]
[337143622,1725455461010,-5000.0,0.000273,120]
[337143623,1725455461035,-5000.0,0.000273,120]
[337143624,1725455461058,-5000.0,0.000273,120]
[337143625,1725455461084,-5000.0,0.000273,120]
[337143626,1725455461109,-5000.0,0.000273,120]
[337143627,1725455461133,-5000.0,0.000273,120]
[337143628,1725455461158,-5000.0,0.000273,120]
[337143629,1725455461182,-5000.0,0.000273,120]
[337143630,1725455461209,-5000.0,0.000273,120]
[337143631,1725455461239,-5000.0,0.000273,120]
[337143632,1725455461264,-2000.0,0.000273,120]
[337143633,1725455461291,-1000.0,0.000273,120]
[337143634,1725455461596,-500.0,0.00027397,30]
[337143635,1725455461628,-167.7767059,0.00027397,30]
[337143636,1725455462043,-151.0,0.0003,120]
[337143637,1725455462070,-2521.9,0.0003,120]
[337143638,1725455462096,-151.0,0.0003,120]
[337143639,1725455462121,-300.0,0.0003,120]
[337143640,1725455462160,-1000.0,0.00030136,118]
[337143641,1725455462185,-1000.0,0.00030136,118]
[337143642,1725455462219,-1000.0,0.00030136,118]
[337143643,1725455462246,-1000.0,0.00030136,118]
[337143644,1725455462271,-1000.0,0.00030136,118]
[337143645,1725455462296,-1000.0,0.00030136,118]
[337143646,1725455462322,-1000.0,0.00030136,118]
[337143647,1725455462347,-1000.0,0.00030136,118]
[337143648,1725455462371,-1000.0,0.00030136,118]
[337143649,1725455462395,-1000.0,0.00030136,118]
[337143650,1725455462419,-982.47186444,0.00030136,118]
[337143651,1725455462459,-600.0,0.00030561,43]
[337143652,1725455462487,-25299.411,0.00030607,30]
[337143653,1725455462535,-1000.0,0.00031,31]
[337143654,1725455462581,-151.0,0.00031589,120]
[337143655,1725455462764,-9744.0,0.00032,30]
[337143656,1725455462796,-300.0,0.00032,120]
[337143657,1725455462831,-500.0,0.00032149,30]
[337143658,1725455462856,-541.67834577,0.00032149,30]
[337143659,1725455462890,-437.1718726,0.00032356,30]
[337143660,1725455462915,-437.1718726,0.00032466,30]
[337143661,1725455462940,-156.13281165,0.00032466,30]
[337143662,1725455462972,-437.1718726,0.00032603,30]
[337143663,1725455462999,-151.0,0.0003274,120]
[337143664,1725455463028,-437.1718726,0.0003274,30]
[337143665,1725455463060,-437.1718726,0.00032877,30]
[337143666,1725455463087,-156.13281165,0.00032932,30]
[337143667,1725455463114,-437.1718726,0.00033014,30]
[337143668,1725455463147,-437.1718726,0.00033151,30]
[337143669,1725455463174,-151.0,0.00033178,120]
[337143670,1725455463210,-437.1718726,0.00033288,30]
[337143671,1725455463252,-437.1718726,0.00033397,30]
[337143672,1725455463288,-1107.21766406,0.00033502,104]
[337143673,1725455463314,-1276.16,0.000336,30]
[337143674,1725455463347,-500.0,0.00033945,120]
[337143675,1725455463375,-500.0,0.00033945,120]
[337143676,1725455463401,-500.0,0.00033945,120]
[337143677,1725455463427,-500.0,0.00033945,120]
[337143678,1725455463452,-500.0,0.00033945,120]
[337143679,1725455463478,-500.0,0.00033945,120]
[337143680,1725455463502,-500.0,0.00033945,120]
[337143681,1725455463527,-500.0,0.00033945,120]
[337143682,1725455463552,-500.0,0.00033945,120]
[337143683,1725455463577,-500.0,0.00033945,120]
[337143684,1725455463606,-500.0,0.00033945,120]
[337143685,1725455463632,-500.0,0.00033945,120]
[337143686,1725455463659,-500.0,0.00033945,120]
[337143687,1725455463685,-500.0,0.00033945,120]
[337143688,1725455463710,-500.0,0.00033945,120]
[337143689,1725455463738,-500.0,0.00033945,120]
[337143690,1725455463763,-500.0,0.00033945,120]
[337143691,1725455463792,-500.0,0.00033945,120]
[337143692,1725455463818,-500.0,0.00033945,120]
[337143693,1725455463843,-500.0,0.00033945,120]
[337143694,1725455463869,-500.0,0.00033945,120]
[337143695,1725455463894,-500.0,0.00033945,120]
[337143696,1725455463918,-500.0,0.00033945,120]
[337143697,1725455463943,-500.0,0.00033945,120]
[337143698,1725455463968,-500.0,0.00033945,120]
[337143699,1725455463993,-500.0,0.00033945,120]
[337143700,1725455464018,-500.0,0.00033945,120]
[337143701,1725455464043,-577.18,0.00033945,120]
[337143702,1725455464067,-500.0,0.00033945,120]
[337143703,1725455464092,-500.0,0.00033945,120]
[337143704,1725455464117,-500.0,0.00033945,120]
[337143705,1725455464141,-500.0,0.00033945,120]
[337143706,1725455464166,-500.0,0.00033945,120]
[337143707,1725455464207,-500.0,0.00033945,120]
[337143708,1725455464241,-500.0,0.00033945,120]
[337143709,1725455464268,-500.0,0.00033945,120]
[337143710,1725455464295,-500.0,0.00033945,120]
[337143711,1725455464322,-500.0,0.00033945,120]
[337143712,1725455464348,-500.0,0.00033945,120]
[337143713,1725455464375,-500.0,0.00033945,120]
[337143714,1725455464399,-500.0,0.00033945,120]
[337143715,1725455464423,-500.0,0.00033945,120]
[337143716,1725455464447,-500.0,0.00033945,120]
[337143717,1725455464470,-510.7,0.00033945,120]
[337143718,1725455464498,-500.0,0.00033945,120]
[337143719,1725455464523,-300.0,0.00034,120]
[337143720,1725455464552,-193.02,0.000345,120]
[337143721,1725455464576,-193.02,0.000345,120]
[337143722,1725455464600,-193.02,0.000345,120]
[337143723,1725455464625,-236.28744535,0.00034521,120]
[337143724,1725455464650,-151.0,0.00034767,120]
[337143725,1725455464674,-1602.0,0.000349,30]
[337143726,1725455464699,-200.0,0.00034918,120]
[337143727,1725455464724,-1276.16,0.000352,30]
[337143728,1725455464761,-151.0,0.00035479,120]
[337143729,1725455464785,-2775.0,0.000356,30]
[337143730,1725455464816,-376.266847,0.00035616,120]
[337143731,1725455464840,-168470.62675969,0.00036,60]
[337143732,1725455465013,-5067.46369029,0.00036302,57]
[337143733,1725455465038,-151.0,0.00036356,120]
[337143734,1725455465064,-1276.16,0.000368,30]
[337143735,1725455465088,-200.0,0.00037229,120]
[337143736,1725455465113,-320.0,0.0003726,120]
[337143737,1725455465137,-320.0,0.0003726,120]
[337143738,1725455465161,-320.0,0.0003726,120]
[337143739,1725455465184,-320.0,0.0003726,120]
[337143740,1725455465210,-320.0,0.0003726,120]
[337143741,1725455465236,-320.0,0.0003726,120]
[337143742,1725455465261,-320.0,0.0003726,120]
[337143743,1725455465287,-320.0,0.0003726,120]
[337143744,1725455465311,-320.0,0.0003726,120]
[337143745,1725455465335,-320.0,0.0003726,120]
[337143746,1725455465360,-320.0,0.0003726,120]
[337143747,1725455465385,-320.0,0.0003726,120]
[337143748,1725455465410,-320.0,0.0003726,120]
[337143749,1725455465433,-650.0,0.0003726,120]
[337143750,1725455465457,-650.0,0.0003726,120]
[337143751,1725455465481,-650.0,0.0003726,120]
[337143752,1725455465505,-650.0,0.0003726,120]
[337143753,1725455465529,-650.0,0.0003726,120]
[337143754,1725455465552,-650.0,0.0003726,120]
[337143755,1725455465576,-650.0,0.0003726,120]
[337143756,1725455465599,-650.0,0.0003726,120]
[337143757,1725455465622,-650.0,0.0003726,120]
[337143758,1725455465646,-650.0,0.0003726,120]
[337143759,1725455465670,-650.0,0.0003726,120]
[337143760,1725455465694,-650.0,0.0003726,120]
[337143761,1725455465717,-650.0,0.0003726,120]
[337143762,1725455465743,-300.0,0.000374,120]
[337143763,1725455465767,-2260.01253211,0.0003786,120]
[337143764,1725455465791,-151.0,0.00037945,120]
[337143765,1725455465816,-151.0,0.00038219,120]
[337143766,1725455465840,-289.86638384,0.000386,30]
[337143767,1725455465865,-1968.03142555,0.000386,30]
[337143768,1725455465890,-10000.0,0.00039,30]
[337143769,1725455465915,-9171.87,0.000394,120]
[337143770,1725455465939,-151.0,0.00039534,120]
[337143771,1725455465963,-650.0,0.00039705,120]
[337143772,1725455465987,-650.0,0.00039705,120]
[337143773,1725455466024,-650.0,0.00039705,120]
[337143774,1725455466064,-650.0,0.00039705,120]
[337143775,1725455466112,-650.0,0.00039705,120]
[337143776,1725455466155,-650.0,0.00039705,120]
[337143777,1725455466191,-650.0,0.00039705,120]
[337143778,1725455466237,-650.0,0.00039705,120]
[337143779,1725455466277,-650.0,0.00039705,120]
[337143780,1725455466317,-650.0,0.00039705,120]
[337143781,1725455466357,-650.0,0.00039705,120]
[337143782,1725455466391,-650.0,0.00039705,120]
[337143783,1725455466429,-650.0,0.00039705,120]
[337143784,1725455466465,-650.0,0.00039705,120]
[337143785,1725455466501,-320.0,0.00039731,120]
[337143786,1725455466537,-320.0,0.00039731,120]
[337143787,1725455466572,-320.0,0.00039731,120]
[337143788,1725455466606,-320.0,0.00039731,120]
[337143789,1725455466640,-320.0,0.00039731,120]
[337143790,1725455466675,-320.0,0.00039731,120]
[337143791,1725455466710,-320.0,0.00039731,120]
[337143792,1725455466746,-320.0,0.00039731,120]
[337143793,1725455466781,-320.0,0.00039731,120]
[337143794,1725455466817,-320.0,0.00039731,120]
[337143795,1725455466852,-320.0,0.00039731,120]
[337143796,1725455466888,-320.0,0.00039731,120]
[337143797,1725455466925,-320.0,0.00039731,120]
[337143798,1725455466958,-320.0,0.00039731,120]
[337143799,1725455466992,-650.0,0.00039862,120]
[337143800,1725455467026,-650.0,0.00039862,120]
[337143801,1725455467061,-650.0,0.00039862,120]
[337143802,1725455467096,-650.0,0.00039862,120]
[337143803,1725455467131,-650.0,0.00039862,120]
[337143804,1725455467165,-650.0,0.00039862,120]
[337143805,1725455467211,-650.0,0.00039862,120]
[337143806,1725455467247,-650.0,0.00039862,120]
[337143807,1725455467281,-650.0,0.00039862,120]
[337143808,1725455467315,-650.0,0.00039862,120]
[337143809,1725455467349,-650.0,0.00039862,120]
[337143810,1725455467382,-650.0,0.00039862,120]
[337143811,1725455467416,-650.0,0.00039862,120]
[337143812,1725455467450,-650.0,0.00039862,120]
[337143813,1725455467486,-320.0,0.00039897,120]
[337143814,1725455467518,-320.0,0.00039897,120]
[337143815,1725455467828,-320.0,0.00039897,120]
[337143816,1725455467854,-320.0,0.00039897,120]
[337143817,1725455467880,-320.0,0.00039897,120]
[337143818,1725455467905,-320.0,0.00039897,120]
[337143819,1725455467930,-320.0,0.00039897,120]
[337143820,1725455467955,-320.0,0.00039897,120]
[337143821,1725455467980,-320.0,0.00039897,120]
[337143822,1725455468004,-320.0,0.00039897,120]
[337143823,1725455468030,-320.0,0.00039897,120]
[337143824,1725455468055,-320.0,0.00039897,120]
[337143825,1725455468079,-320.0,0.00039897,120]
[337143826,1725455468105,-320.0,0.00039897,120]
[337143827,1725455468130,-52662.88876147,0.000399,120]
[337143828,1725455468155,-49566.161,0.0004,120]
[337143829,1725455468181,-1253.0,0.0004,120]
[337143830,1725455468208,-1014.15306556,0.0004,120]
[337143831,1725455468233,-8777.50718004,0.0004,120]
[337143832,1725455468260,-1000.0,0.0004,120]
[337143833,1725455468287,-300.0,0.0004,120]
[337143834,1725455468313,-71697.67621558,0.0004,30]
[337143835,1725455468339,-800.0,0.00040008,30]
[337143836,1725455468363,-650.0,0.00040044,120]
[337143837,1725455468387,-650.0,0.00040044,120]
[337143838,1725455468411,-650.0,0.00040044,120]
[337143839,1725455468435,-650.0,0.00040044,120]
[337143840,1725455468459,-650.0,0.00040044,120]
[337143841,1725455468484,-650.0,0.00040044,120]
[337143842,1725455468508,-650.0,0.00040044,120]
[337143843,1725455468532,-650.0,0.00040044,120]
[337143844,1725455468557,-650.0,0.00040044,120]
[337143845,1725455468582,-650.0,0.00040044,120]
[337143846,1725455468606,-650.0,0.00040044,120]
[337143847,1725455468631,-650.0,0.00040044,120]
[337143848,1725455468655,-650.0,0.00040044,120]
[337143849,1725455468680,-650.0,0.00040044,120]
[337143850,1725455468704,-320.0,0.00040075,120]
[337143851,1725455468728,-320.0,0.00040075,120]
[337143852,1725455468755,-320.0,0.00040075,120]
[337143853,1725455468778,-320.0,0.00040075,120]
[337143854,1725455468802,-320.0,0.00040075,120]
[337143855,1725455468827,-320.0,0.00040075,120]
[337143856,1725455468851,-320.0,0.00040075,120]
[337143857,1725455468876,-320.0,0.00040075,120]
[337143858,1725455468900,-320.0,0.00040075,120]
[337143859,1725455468925,-320.0,0.00040075,120]
[337143860,1725455468951,-320.0,0.00040075,120]
[337143861,1725455468978,-320.0,0.00040075,120]
[337143862,1725455469005,-320.0,0.00040075,120]
[337143863,1725455469030,-320.0,0.00040075,120]
[337143864,1725455469055,-250.7,0.000401,42]
[337143865,1725455469079,-1800.0,0.00040146,30]
[337143866,1725455469105,-662.64019182,0.000402,120]
[337143867,1725455469129,-1200.0,0.00040219,30]
[337143868,1725455469153,-650.0,0.00040229,120]
[337143869,1725455469178,-650.0,0.00040229,120]
[337143870,1725455469205,-650.0,0.00040229,120]
[337143871,1725455469235,-650.0,0.00040229,120]
[337143872,1725455469264,-650.0,0.00040229,120]
[337143873,1725455469292,-650.0,0.00040229,120]
[337143874,1725455469315,-650.0,0.00040229,120]
[337143875,1725455469339,-650.0,0.00040229,120]
[337143876,1725455469363,-650.0,0.00040229,120]
[337143877,1725455469391,-650.0,0.00040229,120]
[337143878,1725455469415,-650.0,0.00040229,120]
[337143879,1725455469440,-650.0,0.00040229,120]
[337143880,1725455469465,-650.0,0.00040229,120]
[337143881,1725455469491,-650.0,0.00040229,120]
[337143882,1725455469515,-320.0,0.00040261,120]
[337143883,1725455469539,-320.0,0.00040261,120]
[337143884,1725455469565,-320.0,0.00040261,120]
[337143885,1725455469589,-320.0,0.00040261,120]
[337143886,1725455469614,-320.0,0.00040261,120]
[337143887,1725455469639,-320.0,0.00040261,120]
[337143888,1725455469665,-320.0,0.00040261,120]
[337143889,1725455469694,-320.0,0.00040261,120]
[337143890,1725455469719,-320.0,0.00040261,120]
[337143891,1725455469744,-320.0,0.00040261,120]
[337143892,1725455469769,-320.0,0.00040261,120]
[337143893,1725455469794,-320.0,0.00040261,120]
[337143894,1725455469818,-320.0,0.00040261,120]
[337143895,1725455469843,-320.0,0.00040261,120]
[337143896,1725455469868,-1000.0,0.00040289,30]
[337143897,1725455469893,-650.0,0.00040404,120]
[337143898,1725455469918,-650.0,0.00040404,120]
[337143899,1725455469943,-650.0,0.00040404,120]
[337143900,1725455469968,-650.0,0.00040404,120]
[337143901,1725455469994,-650.0,0.00040404,120]
[337143902,1725455470019,-650.0,0.00040404,120]
[337143903,1725455470044,-650.0,0.00040404,120]
[337143904,1725455470069,-650.0,0.00040404,120]
[337143905,1725455470095,-650.0,0.00040404,120]
[337143906,1725455470121,-650.0,0.00040404,120]
[337143907,1725455470144,-650.0,0.00040404,120]
[337143908,1725455470168,-650.0,0.00040404,120]
[337143909,1725455470192,-650.0,0.00040404,120]
[337143910,1725455470220,-650.0,0.00040404,120]
[337143911,1725455470247,-320.0,0.00040438,120]
[337143912,1725455470276,-320.0,0.00040438,120]
[337143913,1725455470303,-320.0,0.00040438,120]
[337143914,1725455470327,-320.0,0.00040438,120]
[337143915,1725455470351,-320.0,0.00040438,120]
[337143916,1725455470553,-320.0,0.00040438,120]
[337143917,1725455470579,-320.0,0.00040438,120]
[337143918,1725455470604,-320.0,0.00040438,120]
[337143919,1725455470628,-320.0,0.00040438,120]
[337143920,1725455470653,-320.0,0.00040438,120]
[337143921,1725455470680,-320.0,0.00040438,120]
[337143922,1725455470705,-320.0,0.00040438,120]
[337143923,1725455470729,-320.0,0.00040438,120]
[337143924,1725455470755,-320.0,0.00040438,120]
[337143925,1725455470780,-1800.0,0.00040488,30]
[337143926,1725455470804,-800.0,0.00040624,30]
[337143927,1725455470828,-1200.0,0.00040759,30]
[337143928,1725455470853,-1800.0,0.00040854,30]
[337143929,1725455470878,-151.0,0.00040959,120]
[337143930,1725455470902,-22358.33006212,0.00041,120]
[337143931,1725455470926,-152.0,0.00041041,31]
[337143932,1725455470950,-200.0,0.000411,46]
[337143933,1725455470975,-151.0,0.00041123,120]
[337143934,1725455471010,-1000.0,0.00041189,30]
[337143935,1725455471034,-800.0,0.00041276,30]
[337143936,1725455471059,-376.266847,0.00041553,120]
[337143937,1725455471084,-1800.0,0.00041988,30]
[337143938,1725455471108,-200.0,0.000421,50]
[337143939,1725455471133,-198.22052376,0.0004229,120]
[337143940,1725455471157,-1800.0,0.00042371,30]
[337143941,1725455471180,-800.0,0.00042381,30]
[337143942,1725455471207,-724.570149,0.00042394,120]
[337143943,1725455471233,-1200.0,0.00042423,30]
[337143944,1725455471258,-1000.0,0.00042428,30]
[337143945,1725455471284,-152.6375423,0.00042459,43]
[337143946,1725455471308,-151.0,0.00042712,120]
[337143947,1725455471333,-1800.0,0.00042808,30]
[337143948,1725455471356,-1094.01210939,0.000429,30]
[337143949,1725455471382,-1000.0,0.00042956,30]
[337143950,1725455471406,-200.0,0.000431,54]
[337143951,1725455471430,-500.0,0.00043195,30]
[337143952,1725455471454,-1200.0,0.00043337,30]
[337143953,1725455471479,-151.0,0.00043699,120]
[337143954,1725455471510,-1200.0,0.00043734,30]
[337143955,1725455471533,-600.0,0.00043835,120]
[337143956,1725455471557,-600.0,0.00043835,120]
[337143957,1725455471581,-600.0,0.00043835,120]
[337143958,1725455471606,-600.0,0.00043835,120]
[337143959,1725455471631,-599.61288314,0.00043835,120]
[337143960,1725455471655,-860.51032812,0.00043835,120]
[337143961,1725455479730,-200.0,0.00034247,30]
[337143963,1725455479757,-200.0,0.00034247,30]
[337143964,1725455479782,-200.0,0.00034247,30]
[337143965,1725455479807,-200.0,0.00034247,30]
[337143966,1725455479831,-200.0,0.00034247,30]
[337143967,1725455479856,-200.0,0.00034247,30]
[337143968,1725455479881,-200.0,0.00034247,30]
[337143969,1725455479906,-200.0,0.00034247,30]
[337143970,1725455479930,-200.0,0.00034247,30]
[337143971,1725455479955,-200.0,0.00034247,30]
[337143972,1725455479979,-200.0,0.00034247,30]
[337143973,1725455480004,-250.7,0.00034247,30]
[337143974,1725455480029,-200.0,0.00034247,30]
[337143975,1725455480052,-250.7,0.00034247,30]
[337143976,1725455480076,-250.699999,0.00034247,30]
[337143977,1725455480100,-200.0,0.00034247,30]
[337143978,1725455480124,-200.0,0.00034247,30]
[337143979,1725455480149,-200.0,0.00034247,30]
[337143980,1725455480174,-200.0,0.00034247,30]
[337143981,1725455480199,-200.0,0.00034247,30]
[337143982,1725455480228,-200.0,0.00034247,30]
[337143983,1725455480252,-200.0,0.00034247,30]
[337143984,1725455480276,-200.0,0.00034247,30]
[337143985,1725455480302,-200.0,0.00034247,30]
[337143986,1725455480328,-200.0,0.00034247,30]
[337143987,1725455480352,-200.0,0.00034247,30]
[337143988,1725455480376,-200.0,0.00034247,30]
[337143989,1725455480400,-250.7,0.00034247,30]
[337143990,1725455480423,-60408.51315931,0.00034247,120]
[337143991,1725455480607,-2500.0,0.00034247,120]
[337143992,1725455480634,-106500.0,0.00034247,38]
[337143993,1725455496913,-13318.00950199,0.00027219,15]
[337143994,1725455497178,-440.66,0.000273,14]
[337143995,1725455497206,-301416.49,0.000273,14]
[337143996,1725455497237,-296.0,0.0002735,17]
[337143997,1725455497355,-1000.0,0.00027397,28]
[337143998,1725455497381,-1000.0,0.00027397,28]
[337143999,1725455497406,-1000.0,0.00027397,28]
[337144000,1725455497430,-1000.0,0.00027397,28]
[337144001,1725455497455,-1000.0,0.00027397,28]
[337144002,1725455497479,-1000.0,0.00027397,28]
[337144003,1725455497504,-1000.0,0.00027397,28]
[337144004,1725455497529,-1000.0,0.00027397,28]
[337144005,1725455497554,-1000.0,0.00027397,28]
[337144006,1725455497579,-1000.0,0.00027397,28]
[337144007,1725455497608,-1000.0,0.00027397,28]
[337144008,1725455497634,-1000.0,0.00027397,28]
[337144009,1725455497660,-1000.0,0.00027397,28]
[337144010,1725455497685,-1000.0,0.00027397,28]
[337144011,1725455497712,-1000.0,0.00027397,28]
[337144012,1725455497736,-1000.0,0.00027397,28]
[337144013,1725455497761,-168.880153,0.00027397,28]
[337144014,1725455497786,-95972.95113296,0.000274,14]
[337144015,1725455497810,-1326.94,0.000274,14]
[337144016,1725455497952,-600.0,0.00027936,20]
[337144017,1725455498046,-2000.0,0.00028,10]
[337144018,1725455498186,-500.0,0.00028767,10]
[337144019,1725455498211,-500.0,0.00028767,10]
[337144020,1725455498242,-301416.49,0.000288,14]
[337144021,1725455498270,-440.66,0.000289,14]
[337144022,1725455498296,-600.0,0.00028967,27]
[337144023,1725455498322,-600.0,0.00028967,27]
[337144024,1725455498346,-1326.94,0.00029,14]
[337144025,1725455498426,-96111.05,0.000294,14]
[337144026,1725455498505,-49519.18,0.00030137,10]
[337144027,1725455498530,-17445.74921205,0.000303,14]
[337144028,1725455503915,-74497.37670486,0.000273,15]
[337144029,1725455504429,-283970.74078795,0.000303,14]
[337144030,1725455504469,-1326.94,0.000306,14]
[337144031,1725455504517,-50000.0,0.00031,15]
[337144032,1725455504552,-96111.05,0.000313,14]
[337144033,1725455504579,-1326.94,0.000315,14]
[337144034,1725455504614,-301416.49,0.000317,14]
[337144035,1725455504647,-50000.0,0.00032,15]
[337144036,1725455504672,-40000.0,0.00032,14]
[337144037,1725455504706,-1326.94,0.000321,14]
[337144038,1725455504746,-23.52250719,0.000327,13]